bitfinex/quotes_ETHUSD_20250110
["timestamp","ask_amount","ask_price","bid_price","bid_amount"]
[1736517459665,0.05,3254.3,3253.5,3.0075]
[1736517459666,0.05,3254.3,3254.0,3.0]
[1736517461324,0.05,3254.3,3253.5,0.0075]
[1736517461550,0.05,3254.3,3253.5,0.03822993]
[1736517461677,0.05,3254.3,3253.6,3.0]
[1736517461981,0.05,3254.3,3253.5,3.27075292]
[1736517461982,0.05,3254.3,3253.7,0.03072992]
[1736517462180,8.77,3254.5,3253.7,3.03072992]
[1736517462380,8.77,3254.5,3254.2,3.0]
[1736517462696,8.77,3254.5,3254.2,3.07291]
[1736517462900,8.82,3254.7,3254.2,3.07291]
[1736517463293,4.02742815,3254.6,3253.4,1.551]
[1736517463483,4.02742815,3254.6,3253.5,0.03073239]
[1736517463682,4.02742815,3254.6,3253.8,3.0]
[1736517463883,7.10004815,3254.6,3253.6,3.07349]
[1736517464098,8.77,3254.4,3253.1,1.62]
[1736517464350,8.77,3254.4,3253.3,3.0]
[1736517464500,8.77,3254.4,3253.6,3.0]
[1736517464836,8.77,3254.4,3253.7,3.0]
[1736517465032,0.442,3254.3,3253.7,3.03073426]
[1736517465268,0.442,3254.3,3254.2,3.07295]
[1736517465418,0.442,3254.3,3254.2,6.07295]
[1736517466248,0.442,3254.3,3254.2,3.0]
[1736517466461,0.442,3254.3,3254.1,3.0]
[1736517467118,0.442,3254.3,3253.8,3.07329]
[1736517467451,8.77,3254.2,3253.6,3.0735]
[1736517467623,8.77,3254.2,3253.7,3.07342]
[1736517467826,8.77,3254.1,3253.6,3.0]
[1736517468041,0.05,3254.0,3253.1,3.07392]
[1736517468250,0.05,3254.0,3253.3,3.07378]
[1736517468453,0.05,3254.0,3253.4,3.07368]
[1736517468652,0.05,3254.0,3253.5,3.07361]
[1736517468874,0.05,3254.0,3253.3,0.0075]
[1736517469156,8.77,3254.1,3254.0,6.07314]
[1736517469315,8.77,3254.1,3254.0,3.0]
[1736517471515,8.77,3254.1,3253.3,3.07375]
[1736517471715,4.02742815,3254.6,3253.5,1.6217]
[1736517471953,0.442,3254.6,3254.1,3.07303]
[1736517472155,0.442,3254.6,3254.2,3.0]
[1736517472314,0.442,3254.6,3254.2,3.07292]
[1736517472517,0.442,3254.6,3254.3,3.0]
[1736517472720,8.77,3254.9,3254.0,3.0]
[1736517472925,0.442,3254.8,3254.5,3.07258]
[1736517473322,0.442,3254.8,3254.3,3.0]
[1736517473567,0.442,3254.8,3254.0,3.0]
[1736517473749,0.442,3254.8,3253.2,3.08132]
[1736517473750,8.77,3254.7,3253.3,3.0]
[1736517473958,8.77,3254.7,3253.9,3.015]
[1736517474272,8.77,3254.9,3254.7,3.0]
[1736517474627,8.77,3254.9,3254.8,3.07238]
[1736517474829,0.442,3255.2,3255.0,3.07213]
[1736517475074,8.82,3255.4,3255.2,3.0]
[1736517475224,8.82,3255.9,3255.2,3.0]
[1736517475427,0.442,3255.8,3255.5,3.07171]
[1736517475771,0.442,3255.7,3255.5,3.07171]
[1736517476076,0.442,3255.6,3255.5,6.07172]
[1736517476571,0.442,3255.6,3255.2,3.07195]
[1736517476776,0.05,3255.5,3255.0,3.07217]
[1736517476928,9.21779712,3255.5,3254.2,1.6615]
[1736517477130,9.21779712,3255.5,3254.7,3.07242]
[1736517477357,9.21779712,3255.5,3254.8,3.0]
[1736517478273,8.82,3255.5,3255.0,3.0]
[1736517478568,8.82,3255.5,3254.3,0.015]
[1736517478569,8.77,3255.5,3255.3,3.0719]
[1736517478873,8.77,3255.5,3255.3,6.0719]
[1736517478874,0.442,3255.4,3255.3,6.0719]
[1736517479069,0.442,3255.4,3255.3,3.0]
[1736517479370,0.442,3255.4,3254.8,3.07237]
[1736517479567,0.05,3255.3,3254.6,3.07256]
[1736517479728,0.05,3255.3,3254.6,3.0725]
[1736517479934,0.05,3255.3,3254.7,3.0]
[1736517480375,11.84201,3255.2,3254.2,3.07291]
[1736517480543,1.189201,3255.1,3254.2,3.07291]
[1736517480741,8.77,3255.0,3253.8,3.07332]
[1736517481072,0.05,3254.9,3254.0,3.07311]
[1736517481255,0.05,3254.9,3253.9,3.07314]
[1736517481426,0.05,3254.9,3253.2,3.07384]
[1736517481427,0.05,3254.9,3254.0,3.07312]
[1736517481632,1.189228,3254.8,3254.1,3.0]
[1736517482168,1.189228,3254.8,3253.9,3.0]
[1736517482470,3.0725,3254.7,3253.7,3.0]
[1736517482770,3.0725,3254.7,3252.5,3.07451]
[1736517482771,0.05,3254.6,3253.0,1.5777]
[1736517483069,0.05,3254.6,3253.7,3.07341]
[1736517483244,8.77,3254.4,3253.7,3.07341]
[1736517483449,8.77,3254.4,3253.6,3.0]
[1736517483644,8.77,3254.4,3253.5,3.0736]
[1736517483849,8.77,3254.4,3252.9,3.07414]
[1736517483850,3.07317,3254.0,3252.9,3.07414]
[1736517484046,8.77,3253.8,3252.6,1.5611]
[1736517484361,8.77,3253.6,3252.5,3.07447]
[1736517484674,8.77,3253.6,3253.5,3.07361]
[1736517484872,0.442,3253.9,3253.7,3.07342]
[1736517484873,8.77,3253.8,3253.7,3.07342]
[1736517485049,0.442,3253.9,3253.8,3.07332]
[1736517486467,0.442,3253.9,3253.8,6.07332]
[1736517486659,4.307,3254.8,3254.3,3.07285]
[1736517486660,8.77,3254.7,3254.3,3.07285]
[1736517486986,8.77,3254.7,3254.6,6.07257]
[1736517488437,8.77,3254.7,3254.6,3.0]
[1736517488653,0.6,3254.6,3253.5,4.59256]
[1736517488983,8.77,3254.3,3253.7,3.07341]
[1736517489310,9.702,3254.3,3253.7,3.07341]
[1736517489614,9.702,3254.3,3253.8,3.0]
[1736517489743,8.77,3254.2,3253.9,3.0]
[1736517490181,8.77,3254.2,3253.8,3.0733]
[1736517490391,8.77,3254.2,3253.6,3.07349]
[1736517490818,0.05,3253.9,3252.9,3.07411]
[1736517490971,0.55,3253.8,3252.8,1.6135]
[1736517491176,0.55,3253.8,3253.2,3.0]
[1736517491391,0.55,3253.8,3253.2,6.07387]
[1736517491607,0.05,3253.9,3253.5,3.0736]
[1736517491760,0.05,3253.9,3253.6,3.07344]
[1736517491965,0.05,3253.9,3252.9,3.0075]
[1736517491966,0.442,3253.8,3253.4,3.0]
[1736517492200,0.442,3253.8,3253.7,6.08092]
[1736517493067,0.442,3253.8,3253.7,6.07342]
[1736517494507,0.442,3253.8,3253.7,3.07342]
[1736517495605,8.77,3254.5,3254.1,3.0]
[1736517495790,9.41430529,3254.5,3254.1,3.0]
[1736517495989,8.77,3254.4,3254.1,3.07302]
[1736517496395,0.55,3254.3,3253.8,3.07325]
[1736517496569,0.55,3254.3,3253.5,3.10430253]
[1736517496878,0.05,3254.2,3253.7,3.0734]
[1736517497076,9.32,3254.1,3253.7,3.0734]
[1736517497304,10.312,3254.1,3253.6,3.07347]
[1736517497881,0.05,3253.6,3252.4,1.6639]
[1736517498384,9.32,3253.5,3252.9,3.07411]
[1736517499083,8.77,3253.4,3253.1,3.07398]
[1736517499394,8.77,3253.4,3252.7,3.0]
[1736517499595,8.77,3253.2,3252.4,1.6639]
[1736517499809,8.77,3253.2,3252.3,3.07467]
[1736517499810,0.05,3253.0,3252.3,3.07467]
[1736517500110,0.05,3253.0,3252.0,4.6022]
[1736517500111,0.05,3253.0,3252.5,6.07455]
[1736517500607,0.05,3253.0,3252.5,3.0]
[1736517500806,8.77,3253.2,3252.5,0.03074208]
[1736517501021,8.77,3253.2,3252.1,3.07493]
[1736517501197,0.9259,3253.1,3252.7,3.0]
[1736517501766,0.55,3253.0,3252.2,3.07481]
[1736517501970,8.77,3252.9,3252.3,3.07473]
[1736517502920,8.77,3252.9,3252.4,0.03074623]
[1736517503124,8.77,3252.9,3252.8,3.08177]
[1736517503421,8.77,3252.9,3252.8,6.07427]
[1736517503626,8.77,3253.7,3252.9,3.0]
[1736517503812,8.77,3253.7,3253.4,3.07362]
[1736517504129,8.77,3253.7,3253.4,3.07363]
[1736517504625,0.44,3253.6,3253.4,3.07363]
[1736517504995,0.44,3253.6,3253.5,3.07361]
[1736517506800,0.44,3253.6,3252.8,6.07419]
[1736517506801,1.361,3253.6,3252.8,6.07419]
[1736517507020,8.77,3253.4,3253.0,3.07407]
[1736517507222,8.77,3253.4,3252.6,4.5262]
[1736517507413,8.77,3253.4,3253.0,3.074]
[1736517509800,0.44,3253.3,3252.7,3.0075]
[1736517510145,0.44,3253.3,3253.2,6.07389]
[1736517510348,8.77,3253.4,3253.2,6.07389]
[1736517510521,9.21,3254.0,3253.9,3.07323]
[1736517511710,0.44,3254.6,3254.5,3.07263]
[1736517511904,0.44,3254.7,3254.5,3.07263]
[1736517512147,9.21,3254.7,3254.6,3.07257]
[1736517512349,9.21,3254.7,3254.0,3.0]
[1736517512517,9.21,3254.7,3254.5,3.07266]
[1736517512723,9.21,3254.7,3254.2,3.0]
[1736517513131,9.21,3254.7,3254.5,3.07258]
[1736517513331,9.21,3254.7,3254.6,3.07257]
[1736517513842,8.77,3254.7,3254.6,3.07257]
[1736517515914,8.77,3255.0,3254.9,3.07229]
[1736517516144,8.77,3255.0,3254.7,3.07246]
[1736517516446,9.677,3255.0,3254.4,3.07272]
[1736517516860,8.756,3254.8,3254.5,3.07263]
[1736517517055,0.44,3254.7,3254.5,3.07263]
[1736517517751,0.44,3254.7,3254.3,3.07278]
[1736517517921,8.806,3254.5,3253.0,3.07399]
[1736517518121,8.756,3254.1,3253.1,1.664]
[1736517518328,8.756,3254.0,3253.9,6.07323]
[1736517519018,8.756,3254.0,3253.9,3.07323]
[1736517519215,8.756,3254.0,3253.9,3.08823]
[1736517519482,5.68286,3254.0,3253.9,3.1189586]
[1736517519616,0.05,3255.3,3254.2,0.0075]
[1736517519979,0.439,3255.4,3255.3,3.07187]
[1736517520452,2.60972,3255.9,3255.0,1.6654]
[1736517520639,2.60972,3255.9,3255.7,3.0715]
[1736517520640,0.439,3255.8,3255.7,3.0715]
[1736517521039,2.60972,3255.9,3255.8,3.07144]
[1736517521230,4.309,3256.0,3255.6,0.03071283]
[1736517521462,0.489,3256.5,3256.1,3.07108]
[1736517521696,0.489,3256.5,3255.3,4.65319]
[1736517521855,0.05,3256.5,3255.3,1.5813]
[1736517522202,0.55,3256.3,3255.3,4.65317]
[1736517522496,0.05,3256.0,3255.0,0.0075]
[1736517522695,0.05,3256.0,3255.5,3.0]
[1736517522856,2.60972,3256.1,3255.1,0.0075]
[1736517523057,0.05,3256.4,3255.6,3.07155]
[1736517523058,0.439,3256.2,3255.6,3.07155]
[1736517523604,0.439,3256.2,3255.7,3.07152]
[1736517523983,0.439,3256.2,3255.5,0.03071296]
[1736517524299,0.439,3256.2,3256.0,3.07123]
[1736517524499,0.439,3256.2,3255.8,3.07141]
[1736517524809,0.748872,3256.2,3255.6,3.0716]
[1736517525101,0.55,3256.1,3255.2,1.5103]
[1736517525256,3.15972,3256.1,3254.9,3.0722]
[1736517525472,3.15972,3256.1,3255.0,3.0]
[1736517525700,0.3908592,3256.0,3255.0,3.0075]
[1736517526405,0.3908592,3256.0,3255.1,3.07202]
[1736517526406,0.55,3255.7,3255.1,3.07202]
[1736517526590,0.55,3255.5,3254.6,3.07249]
[1736517526792,0.55,3255.3,3254.2,3.07286]
[1736517527017,2.65972,3255.4,3254.0,3.07313]
[1736517527018,0.55,3254.8,3254.0,3.07313]
[1736517527174,0.05,3254.9,3254.0,3.07313]
[1736517527175,0.437,3254.7,3254.5,3.0]
[1736517527512,0.437,3254.7,3253.9,3.07316]
[1736517527696,0.437,3254.7,3254.0,3.07312]
[1736517528291,0.55,3254.6,3253.6,2.38625128]
[1736517528506,0.909672,3254.6,3253.7,0.03073101]
[1736517528815,3.519392,3254.6,3253.8,3.0]
[1736517529012,0.05,3254.5,3253.8,3.07331]
[1736517529473,0.05,3254.5,3253.6,2.38625128]
[1736517529474,0.05,3254.5,3253.7,0.03073101]
[1736517529669,0.05,3254.5,3253.6,5.38625128]
[1736517529945,0.4506392,3254.5,3253.7,0.03073103]
[1736517530084,0.4506392,3254.5,3253.9,3.07322]
[1736517531584,0.05,3254.5,3254.1,3.07299]
[1736517531940,0.05,3254.5,3254.0,3.07312]
[1736517532235,0.05,3254.5,3253.6,5.45971128]
[1736517532393,0.05,3254.5,3253.8,3.07328]
[1736517532593,0.05,3254.5,3253.7,3.0]
[1736517532816,0.05,3254.5,3253.9,3.07315]
[1736517533391,0.05,3254.5,3254.0,3.07311]
[1736517534315,0.437,3254.4,3254.0,3.07311]
[1736517535419,2.60972,3254.5,3253.9,3.0]
[1736517535584,2.60972,3254.5,3254.1,3.07297]
[1736517535776,0.437,3254.4,3254.1,3.07297]
[1736517536018,0.437,3254.4,3254.3,3.07285]
[1736517536401,2.60972,3254.5,3254.3,3.07285]
[1736517536402,3.04672,3254.5,3254.3,3.07285]
[1736517536599,0.437,3254.5,3254.4,3.07276]
[1736517538381,2.60972,3255.0,3254.2,0.0075]
[1736517538664,2.60972,3255.0,3254.4,3.07269]
[1736517539161,2.60972,3255.0,3254.5,3.07264]
[1736517539527,3.04672,3255.0,3254.8,3.07231]
[1736517539929,3.04672,3255.0,3254.9,3.07229]
[1736517540799,0.437,3255.0,3254.9,3.07229]
[1736517541163,7.35372,3255.4,3255.3,3.07191]
[1736517541417,4.744,3255.4,3255.2,3.0]
[1736517541623,0.55,3255.3,3254.6,3.07254]
[1736517541914,0.05,3255.2,3254.5,1.56322291]
[1736517542122,0.05,3255.2,3254.7,3.0]
[1736517542417,0.05,3255.2,3254.7,3.07239]
[1736517542623,0.05,3255.2,3254.5,1.5325]
[1736517542624,0.5844,3255.2,3254.5,1.5325]
[1736517542797,0.05,3255.2,3254.7,3.07247]
[1736517543204,0.05,3255.2,3254.5,4.60514]
[1736517543356,0.05,3255.2,3254.7,3.07244]
[1736517544237,0.55,3254.9,3254.2,6.07293]
[1736517544432,3.15972,3254.9,3253.7,1.5148]
[1736517544583,0.6,3254.7,3253.7,1.5148]
[1736517544922,0.6,3254.7,3254.0,3.07308]
[1736517545239,0.6,3254.7,3254.3,3.07282]
[1736517545240,0.05,3254.7,3254.3,3.07282]
[1736517545365,0.05,3254.7,3254.1,3.10371959]
[1736517545566,0.05,3254.7,3254.1,3.07299]
[1736517545809,0.370972,3254.7,3254.1,3.07303]
[1736517545987,0.05,3254.7,3254.1,3.07303]
[1736517546408,0.05,3254.7,3253.8,3.0]
[1736517546603,0.05,3254.7,3254.1,3.07302]
[1736517546827,0.05,3254.7,3254.0,0.03072857]
[1736517547034,0.437,3254.6,3254.2,3.07295]
[1736517547319,2.60972,3254.9,3254.7,3.07243]
[1736517547681,2.60972,3254.9,3254.5,3.07262]
[1736517547864,2.60972,3254.9,3254.2,1.6521]
[1736517548082,0.05,3254.8,3254.3,3.07282]
[1736517548284,0.6,3254.8,3254.1,3.07302]
[1736517548505,0.55,3254.6,3253.5,3.07359]
[1736517548723,3.48552672,3254.5,3253.5,3.07359]
[1736517549032,6.09524672,3254.5,3253.6,3.0]
[1736517549242,2.60972,3254.5,3254.0,3.07311]
[1736517549386,2.60972,3254.5,3253.9,3.0]
[1736517549585,2.9027892,3254.5,3253.9,3.0]
[1736517550020,3.15972,3254.4,3253.6,3.0735]
[1736517550356,0.05,3254.1,3253.8,3.07329]
[1736517550636,0.55,3254.0,3253.4,3.07367]
[1736517551182,0.55,3254.2,3253.5,3.07358]
[1736517553126,0.55,3254.0,3253.5,3.07358]
[1736517554495,0.27615604,3253.9,3253.5,3.07358]
[1736517554898,0.27615604,3253.9,3253.3,3.0738]
[1736517555119,0.27615604,3253.9,3253.4,3.07362]
[1736517555427,0.27615604,3253.9,3253.5,3.07358]
[1736517555938,2.88587604,3253.9,3253.5,3.07358]
[1736517556258,2.88587604,3253.9,3253.8,3.07332]
[1736517556535,2.88587604,3253.9,3253.8,7.60182]
[1736517557349,2.60972,3253.9,3253.8,7.60182]
[1736517558448,0.434,3254.4,3254.3,6.07285]
[1736517559112,0.434,3254.6,3254.3,6.07285]
[1736517559532,0.19238764,3255.2,3254.6,3.07251]
[1736517559738,0.19238764,3255.2,3254.7,0.03072072]
[1736517560214,0.19238764,3255.2,3254.7,3.03072072]
[1736517560553,4.791,3255.4,3254.7,0.03072072]
[1736517560699,4.791,3255.4,3254.7,3.07244]
[1736517560893,4.791,3255.4,3255.0,3.07217]
[1736517561363,4.357,3255.4,3254.5,1.5337]
[1736517561495,0.55,3255.0,3254.1,1.6579]
[1736517561695,0.55,3254.8,3253.7,3.07334]
[1736517561996,3.62246,3254.8,3253.7,3.07337]
[1736517562306,0.55,3254.2,3253.5,3.07356]
[1736517562510,0.55,3254.0,3253.4,3.0]
[1736517562831,0.55,3254.0,3252.9,3.07416]
[1736517562832,0.55,3253.6,3252.2,3.07476]
[1736517563049,2.60972,3253.5,3252.4,3.07465]
[1736517563349,2.60972,3253.4,3252.5,3.07448]
[1736517563552,2.60972,3253.4,3252.8,3.07427]
[1736517563755,2.60972,3253.4,3252.5,3.07448]
[1736517563756,2.60972,3253.4,3252.9,6.07417]
[1736517564042,2.60972,3253.4,3252.9,3.0]
[1736517564336,2.60972,3253.4,3252.9,3.0741]
[1736517565033,2.60972,3253.4,3252.5,6.0745]
[1736517565333,2.60972,3253.4,3252.5,3.0745]
[1736517565645,0.55,3253.2,3252.6,3.07445]
[1736517565946,0.55,3253.2,3252.3,4.66893]
[1736517565947,2.60972,3253.3,3252.4,3.10539329]
[1736517566121,2.60972,3253.3,3252.4,0.03074329]
[1736517566324,2.60972,3253.3,3252.9,3.07417]
[1736517566518,2.60972,3253.3,3253.2,3.07389]
[1736517567245,2.60972,3253.3,3253.2,6.07389]
[1736517567611,2.60972,3253.3,3253.2,3.07389]
[1736517570165,2.60972,3253.3,3253.2,6.07389]
[1736517570307,0.434,3253.8,3253.2,6.07389]
[1736517570514,0.434,3253.8,3253.7,6.07342]
[1736517571254,0.434,3254.1,3254.0,3.07312]
[1736517572612,0.434,3254.1,3253.8,3.0733]
[1736517574156,0.434,3254.1,3253.5,3.07357]
[1736517574383,0.434,3254.1,3253.6,3.07343]
[1736517574854,0.434,3254.1,3253.7,3.0734]
[1736517575757,0.434,3254.1,3253.2,1.5759]
[1736517575928,3.20972,3254.0,3253.5,3.07358]
[1736517576263,3.20972,3254.0,3253.1,3.07399]
[1736517576554,3.20972,3254.0,3253.2,3.07385]
[1736517576755,0.55,3253.8,3253.0,3.07408]
[1736517576944,0.55,3253.8,3253.2,3.07384]
[1736517577143,2.60972,3253.9,3253.3,3.03073779]
[1736517577322,2.65972,3254.0,3253.6,3.07343]
[1736517577522,2.60972,3254.0,3253.3,0.03073779]
[1736517577723,0.434,3253.9,3253.8,3.07325]
[1736517578035,2.60972,3254.0,3253.9,3.07323]
[1736517578267,3.04372,3254.0,3253.9,3.07323]
[1736517580622,0.434,3254.0,3253.8,3.0]
[1736517581060,0.434,3254.0,3253.3,3.07376]
[1736517581260,0.55,3253.9,3253.4,3.07362]
[1736517581514,0.55,3253.9,3253.5,3.0]
[1736517581913,0.55,3253.9,3253.1,3.0]
[1736517581914,0.82665405,3253.9,3253.1,3.0]
[1736517582079,0.27665337,3253.8,3252.9,1.5001]
[1736517582285,0.05,3253.7,3253.1,3.0]
[1736517582497,0.05,3253.7,3253.5,3.0736]
[1736517582665,0.27665337,3253.8,3253.7,3.07342]
[1736517582860,0.71065337,3253.8,3253.7,3.07342]
[1736517583598,0.27665337,3253.8,3253.7,6.07342]
[1736517583897,0.434,3253.8,3253.7,6.07342]
[1736517584824,0.434,3253.8,3252.9,1.5001]
[1736517584982,2.964092,3253.7,3253.2,3.0738]
[1736517585165,2.60972,3253.6,3253.0,3.07405]
[1736517585359,2.60972,3253.6,3252.5,1.543]
[1736517585564,2.60972,3253.6,3253.1,3.07395]
[1736517585861,0.27660275,3253.5,3253.1,3.07389]
[1736517586062,0.55,3253.4,3252.7,3.0]
[1736517586293,0.55,3253.4,3252.6,3.0]
[1736517586484,0.55,3253.4,3252.6,3.03074142]
[1736517586675,0.55,3253.4,3253.0,3.0]
[1736517586996,0.55,3253.4,3252.6,3.0]
[1736517587204,0.95369991,3253.4,3252.7,3.07432]
[1736517587560,0.95369991,3253.4,3252.8,3.0]
[1736517587992,0.27660275,3253.3,3252.8,3.0]
[1736517588200,4.03552672,3252.9,3252.1,3.07486]
[1736517588360,0.55,3252.7,3251.5,1.512]
[1736517588561,6.46121872,3252.6,3251.6,3.07538]
[1736517588758,0.05,3252.2,3251.2,3.07571]
[1736517588957,0.55,3252.1,3251.4,3.07556]
[1736517589203,3.15972,3252.1,3251.1,3.9274422]
[1736517589431,3.15972,3252.1,3251.3,3.07563]
[1736517589706,4.08921014,3252.3,3251.1,2.4154422]
[1736517589707,4.03552672,3251.7,3251.1,2.4154422]
[1736517589880,0.55,3251.3,3251.1,2.4154422]
[1736517590072,0.481,3251.2,3250.6,3.07632]
[1736517590305,0.481,3251.2,3250.0,6.83725882]
[1736517590306,4.03552672,3251.1,3250.0,1.5296]
[1736517590616,0.55,3250.9,3250.1,3.07682]
[1736517590810,2.60972,3251.0,3249.5,1.5234]
[1736517590988,2.60972,3251.0,3249.6,0.0307626]
[1736517591187,0.55,3250.9,3250.1,3.07678]
[1736517591600,6.09524672,3251.1,3250.3,3.07659]
[1736517591799,6.09524672,3251.1,3250.2,3.0767]
[1736517592000,1.20762467,3251.0,3250.2,3.0767]
[1736517592822,3.48552672,3250.7,3249.5,1.5234]
[1736517593003,0.55,3250.6,3249.8,3.0771]
[1736517593316,0.55,3250.4,3249.6,3.07727]
[1736517593517,0.55,3250.2,3249.6,3.07727]
[1736517593683,3.15972,3250.2,3249.7,3.07718]
[1736517594079,3.15972,3250.2,3249.5,0.0075]
[1736517594080,2.60972,3250.2,3249.5,0.0075]
[1736517594279,2.60972,3250.2,3250.1,6.07682]
[1736517595082,2.60972,3250.2,3250.1,3.0]
[1736517595277,0.55,3250.1,3249.6,3.07727]
[1736517595506,6.64524672,3249.9,3249.2,3.07767]
[1736517595682,0.55,3249.7,3248.5,4.60338]
[1736517595896,0.55,3249.7,3249.1,3.07776]
[1736517596093,3.48552672,3249.4,3248.6,3.07815]
[1736517596434,0.55,3249.3,3248.0,4.58685]
[1736517596722,0.05,3248.9,3247.1,1.5081]
[1736517597023,0.05,3248.2,3247.8,3.07899]
[1736517597181,6.09524672,3248.3,3247.9,3.0789]
[1736517597182,0.431,3248.1,3247.9,3.0789]
[1736517597389,0.431,3248.1,3247.5,3.07924]
[1736517597621,0.431,3248.1,3247.7,3.07901]
[1736517597793,0.431,3248.1,3247.8,6.07898]
[1736517598126,2.60972,3248.3,3247.9,0.03078806]
[1736517598327,2.60972,3248.3,3248.2,3.0]
[1736517598629,2.60972,3248.3,3248.2,3.07862]
[1736517598829,2.60972,3248.3,3248.2,6.07862]
[1736517599826,0.431,3248.7,3248.3,3.0]
[1736517599992,0.431,3248.7,3248.2,0.0075]
[1736517600184,0.431,3248.7,3248.6,3.0]
[1736517600384,0.431,3248.7,3248.0,3.07881]
[1736517600584,0.431,3248.7,3248.0,3.07879]
[1736517600800,3.15972,3248.6,3247.7,4.73692]
[1736517601061,3.15972,3248.6,3246.6,3.08011]
[1736517601062,0.55,3248.2,3247.5,3.07928]
[1736517601301,3.07827,3248.6,3246.1,1.5287]
[1736517601302,0.55,3247.6,3246.1,1.5287]
[1736517601502,0.55,3247.6,3246.3,3.08043]
[1736517601706,2.60972,3247.4,3247.0,3.07971]
[1736517601907,2.60972,3247.3,3246.9,1.6039]
[1736517602105,2.60972,3248.0,3246.9,1.63469633]
[1736517602442,3.07734,3249.6,3246.9,1.63469633]
[1736517602443,2.60972,3248.3,3247.1,3.07967]
[1736517602668,2.55972,3248.7,3248.2,6.07862]
[1736517602877,2.55972,3248.7,3248.2,3.0]
[1736517603027,0.482,3248.8,3248.7,6.07815]
[1736517603028,0.432,3248.8,3248.7,6.07815]
[1736517603224,0.46115205,3249.4,3248.8,3.0]
[1736517603463,0.46115205,3249.4,3249.3,3.07758]
[1736517603606,0.46115205,3249.4,3248.6,1.6643]
[1736517603808,0.46115205,3249.4,3248.2,1.6023]
[1736517603809,0.05,3249.3,3248.2,1.6023]
[1736517604046,2.55972,3249.2,3248.4,3.07839]
[1736517604249,0.55,3249.1,3248.5,3.07833]
[1736517604661,2.55972,3249.2,3249.0,3.07781]
[1736517604823,2.60972,3249.8,3248.8,3.07805]
[1736517605185,3.0772,3249.7,3248.2,4.68085]
[1736517605482,0.55,3249.4,3248.2,1.6023]
[1736517605757,3.62732,3249.6,3247.5,3.07926]
[1736517605758,0.55,3248.6,3247.5,1.5879]
[1736517605957,0.55,3248.4,3247.5,1.5879]
[1736517606164,0.432,3248.3,3248.0,3.07878]
[1736517606359,0.432,3248.4,3247.5,1.5879]
[1736517606536,2.99172,3248.4,3247.6,0.0075]
[1736517606857,2.99172,3248.4,3248.3,3.07853]
[1736517607059,0.432,3248.4,3248.3,3.0]
[1736517607261,0.432,3248.4,3248.0,3.07872]
[1736517607262,2.99172,3248.4,3247.5,1.5879]
[1736517607561,2.55972,3248.3,3247.7,0.0075]
[1736517607738,2.55972,3248.3,3248.2,6.07862]
[1736517607937,0.432,3248.4,3248.3,7.62533]
[1736517608149,0.432,3248.4,3248.3,7.63283]
[1736517608356,2.55972,3249.6,3248.8,3.07799]
[1736517608357,0.432,3249.5,3248.8,3.07799]
[1736517608671,2.55972,3249.4,3249.2,3.07767]
[1736517609368,2.55972,3249.4,3249.3,3.10835537]
[1736517609526,2.55972,3249.4,3249.3,3.11585537]
[1736517609931,4.313,3249.9,3249.8,6.07711]
[1736517610132,2.55972,3250.7,3250.6,6.07635]
[1736517610375,2.55972,3250.7,3249.9,4.5298]
[1736517610376,2.60972,3251.4,3250.8,3.0]
[1736517610532,2.55972,3251.3,3250.8,0.03075729]
[1736517610733,2.55972,3251.3,3251.1,3.07586]
[1736517611134,2.8206926,3251.3,3250.3,3.07657]
[1736517611330,2.55972,3251.2,3249.9,1.5298]
[1736517611538,0.2609726,3251.3,3250.0,3.07685]
[1736517611539,2.55972,3251.1,3250.0,3.07685]
[1736517611736,0.55,3251.0,3249.5,1.5404]
[1736517612029,0.55,3250.8,3249.8,3.0]
[1736517612179,0.432,3250.9,3250.8,3.07616]
[1736517612379,2.99172,3250.9,3250.2,1.5045]
[1736517612580,2.99172,3250.9,3249.9,3.0]
[1736517612797,0.55,3250.8,3250.2,3.0]
[1736517612999,0.05,3250.8,3249.4,3.07749]
[1736517613137,2.863892,3250.7,3249.3,1.5045]
[1736517613338,2.863892,3250.7,3249.6,3.07723]
[1736517613658,2.863892,3250.7,3249.6,3.07726]
[1736517613853,0.55,3250.4,3249.4,3.07748]
[1736517614058,0.55,3250.4,3249.3,1.5045]
[1736517614408,2.55972,3250.5,3249.6,3.0773]
[1736517614563,2.55972,3250.5,3249.7,3.10796591]
[1736517614766,2.55972,3250.5,3249.6,0.015]
[1736517614767,2.55972,3250.5,3249.8,0.03076569]
[1736517614963,2.55972,3250.5,3250.1,3.07679]
[1736517615302,0.55,3250.4,3249.6,3.07721]
[1736517615503,0.55,3250.4,3249.1,0.0075]
[1736517615504,0.55,3250.0,3248.9,1.6331]
[1736517615710,0.55,3250.0,3248.9,3.07792]